[Event "FIDE Candidates 2024"]
[Site "Toronto"]
[Date "2024.04.04"]
[Round "1.1"]
[White "Caruana, Fabiano"]
[Black "Nakamura, Hikaru"]
[Result "1/2-1/2"]
[ECO "B56"]
[WhiteElo "2803"]
[BlackElo "2789"]
[Annotator "TA"]
[PlyCount "82"]
[EventDate "2024.04.02"]
[EventType "tourn"]
[EventCountry "CAN"]
[SourceTitle "playchess.com"]
[Source "ChessBase"]
[SourceQuality "1"]
[TimeControl "40/7200:1800+30"]

{[%evp 14,82,56,43,45,49,40,46,44,49,55,35,35,38,31,23,24,10,9,5,12,12,41,35,37,47,57,45,64,41,56,48,72,76,102,96,110,116,114,123,108,83,127,84,73,76,62,64,59,32,60,0,0,0,8,0,0,0,0,0,26,26,26,26,30,30,30,30,38,23,22]} 1. e4 {[%emt 0:00:04]} c5 {[%emt 0:00:10]} 2. Nf3 {[%emt 0:00:05][%cal Bg1f3,Bf3d4,Bd4f5][%mdl 32]} d6 {[%emt 0:00:04]} 3. d4 {[%emt 0:00:14]} cxd4 {[%emt 0:00:06]} 4. Nxd4 {[%emt 0:00:03]} Nf6 {[%emt 0:00:06]} 5. Nc3 {[%emt 0:00:04]} e5 {[%emt 0:00:05]} 6. Bb5+ {[%emt 0:03:44][%cal Bf1b5,Bb5a4,Ba4b3][%mdl 32]} Nbd7 {[%emt 0:00:30]} 7. Nf5 {[%emt 0:04:07]} a6 {[%emt 0:00:43]} 8. Ba4 {[%emt 0:09:20]} (8. Nxd6+ $2 Bxd6 9. Qxd6 axb5 $19) 8... b5 {[%emt 0:00:14]} 9. Bb3 {[%emt 0:00:03]} Nc5 {[%emt 0:00:05][%cal Oc5b3]} 10. Bg5 {[%emt 0:01:40] aiming for Bd5.} Bxf5 {[%emt 0:00:06] White is slightly better.} 11. exf5 {[%emt 0:01:54]} Be7 {[%emt 0:00:05][%cal Bf8e7,Be7f6,Bf6b2][%mdl 32]} 12. Bxf6 {[%emt 0:05:30]} Bxf6 {[%emt 0:01:43]} 13. O-O {[%emt 0:10:14]} e4 {[%emt 0:02:43]} 14. Nxe4 {[%emt 0:09:35]} Nxe4 {[%emt 0:01:16]} 15. Re1 {[%emt 0:00:20]} (15. Qd5 $5 O-O $8 (15... Ng5 $2 16. Rae1+ Kf8 17. h4 $16) 16. Qxe4 $14) 15... O-O $1 {[%emt 0:00:08]} 16. Rxe4 $40 {[%emt 0:00:03][%mdl 128] Black needs to defend precisely.} Bxb2 {[%emt 0:00:14] Black is weak on the light squares} 17. Rb1 {[%emt 0:00:02]} Bf6 {[%emt 0:03:52]} 18. Qd5 {[%emt 0:02:38]} Rc8 {[%emt 0:06:37][%cal Ba8c8,Bc8c5,Bc5f5,Bf5f2,Bf2f6][%mdl 32]} 19. Qb7 {[%emt 0:12:29]} Rc5 {[%emt 0:34:27]} 20. Qxa6 {[%emt 0:01:21]} Rxf5 {[%emt 0:04:27]} 21. Rd1 {[%emt 0:04:45] White is more active.} d5 {[%emt 0:02:49]} 22. Rb4 {[%emt 0:20:56][%cal Be4b4,Bb4b5,Bb5d5][%mdl 32]} (22. Qxb5 $2 dxe4 23. Bxf7+ Rxf7 $19) 22... Bc3 {[%emt 0:20:10]} 23. Rxb5 {[%emt 0:00:23]} Rxf2 {[%emt 0:00:07]} 24. Rbxd5 {[%emt 0:10:18]} ({Of course not} 24. Kxf2 $6 Qh4+ 25. Kg1 Bd4+ 26. Kh1 Be5 $11) 24... Qh4 {[%emt 0:00:31]} 25. Qd3 {[%emt 0:02:31]} Rf6 {[%emt 0:02:45]} 26. g3 {[%emt 0:02:30]} (26. Qxc3 $2 {is a self mate.} Qf2+ 27. Kh1 Qf1+ 28. Rxf1 Rxf1#) 26... Qb4 {[%emt 0:03:18]} 27. Kg2 {[%emt 0:02:48]} Bb2 {[%emt 0:00:00]} 28. Rf5 {[%emt 0:02:58]} g6 {[%emt 0:09:41]} 29. Rxf6 {[%emt 0:00:03]} Bxf6 {[%emt 0:00:04]} 30. Qf3 {[%emt 0:00:17]} Qe7 {[%emt 0:00:04]} 31. a4 {[%emt 0:00:56]} Kg7 {[%emt 0:01:28]} 32. a5 {[%emt 0:00:16]} ({White should play} 32. Bd5 $14) 32... Ra8 $11 {[%emt 0:02:55]} 33. Rd5 {[%emt 0:01:03]} (33. Qxa8 $5 Qe2+ $8 34. Kh3 $11) 33... Ra7 {[%emt 0:00:05]} 34. Rb5 {[%emt 0:01:38]} Qd8 {[%emt 0:01:25]} 35. Rd5 {[%emt 0:00:54]} Qc7 {[%emt 0:01:35]} ({But not} 35... Qa8 $6 36. a6 $14) 36. h4 {[%emt 0:00:52]} Rxa5 {[%emt 0:06:15]} 37. Rxa5 {[%emt 0:00:04]} Qxa5 {[%emt 0:00:03]} 38. Qb7 {[%emt 0:00:03]} Qd8 {[%emt 0:00:22]} 39. Qxf7+ {[%emt 0:00:06]} Kh6 {[%emt 0:00:01]} 40. Kh3 {[%emt 0:00:00]} Qe7 {[%emt 0:00:00]} 41. Qc4 {[%emt 0:02:23]} Qe3 {[%emt 0:00:52] Weighted Error Value: White=0.08 (flawless) /Black=0.08 (flawless) .  Mistake:       	White=1     	---        Inaccurate:     	White=2     	Black=5      OK:         	White=13    	Black=15     Best:        	White=1     	Black=1      Strong:       	---       	Black=1} 1/2-1/2

[Event "FIDE Candidates 2024"]
[Site "Toronto"]
[Date "2024.04.04"]
[Round "2.4"]
[White "Caruana, Fabiano"]
[Black "Abasov, Nijat"]
[Result "1-0"]
[ECO "B30"]
[WhiteElo "2803"]
[BlackElo "2632"]
[Annotator "TA"]
[PlyCount "73"]
[EventDate "2024.04.02"]
[EventType "tourn"]
[EventCountry "CAN"]
[SourceTitle "playchess.com"]
[Source "ChessBase"]
[SourceQuality "1"]
[TimeControl "40/7200:1800+30"]

{[%evp 9,73,20,16,18,18,22,22,20,23,24,12,18,11,21,18,23,24,39,38,25,24,18,36,41,32,35,29,33,34,37,32,26,38,18,31,18,31,16,9,16,36,0,0,0,57,64,71,20,56,25,48,12,14,47,44,38,77,78,73,70,632,624,818,813,29984,29985]} 1. e4 {[%emt 0:00:07]} c5 {[%emt 0:00:07]} 2. Nf3 {[%emt 0:00:03]} Nc6 {[%emt 0:00:07]} 3. Bb5 {[%emt 0:00:07]} e5 {[%emt 0:00:05]} 4. O-O {[%emt 0:00:14]} Bd6 {[%emt 0:00:22]} 5. d3 {[%emt 0:00:22]} Nf6 {[%emt 0:00:40]} 6. Nc3 {[%emt 0:00:24]} O-O {[%emt 0:01:17]} 7. h3 {[%emt 0:00:43]} a6 {[%emt 0:02:37]} 8. Bxc6 {[%emt 0:07:05] The position is equal.} dxc6 {[%emt 0:07:13]} 9. Nh4 {[%emt 0:00:24]} Re8 {[%emt 0:00:21]} 10. Qf3 {[%emt 0:04:15]} g6 {[%emt 0:06:46]} 11. Bg5 {[%emt 0:09:20]} Be7 {[%emt 0:00:20][%cal Oh7h6]} 12. Qe3 {[%emt 0:00:27]} Nh5 {[%emt 0:12:33]} 13. Bxe7 {[%emt 0:01:58]} Qxe7 {[%emt 0:00:17]} 14. Nf3 {[%emt 0:00:04]} b6 {[%emt 0:03:52]} 15. a3 {[%emt 0:13:49]} b5 {[%emt 0:07:39]} 16. Ne2 {[%emt 0:02:44]} f6 {[%emt 0:10:20]} 17. Nd2 {[%emt 0:04:05]} Be6 {[%emt 0:02:08]} 18. f4 {[%emt 0:02:44]} Nxf4 {[%emt 0:01:42]} 19. Nxf4 {[%emt 0:00:05]} exf4 {[%emt 0:00:05]} 20. Rxf4 {[%emt 0:09:34]} Rad8 {[%emt 0:08:18]} 21. Qf2 {[%emt 0:05:40]} Rf8 {[%emt 0:02:51]} 22. Rf1 {[%emt 0:08:04]} Kg7 {[%emt 0:01:54]} 23. b4 {[%emt 0:04:50]} cxb4 {[%emt 0:11:53]} 24. axb4 {[%emt 0:00:04]} Ra8 {[%emt 0:06:17][%cal Oa6a5]} 25. Kh1 {[%emt 0:06:04]} a5 {[%emt 0:01:55]} 26. bxa5 {[%emt 0:00:06]} c5 {[%emt 0:00:32]} (26... Rxa5 $11 27. Nf3 c5) 27. Ra1 $14 {[%emt 0:03:34]} Ra6 {[%emt 0:00:09] [#]} 28. e5 $1 {[%emt 0:12:56]} f5 $11 {[%emt 0:02:27]} 29. c4 {[%emt 0:00:04]} bxc4 {[%emt 0:01:02]} 30. dxc4 {[%emt 0:03:06]} Rfa8 {[%emt 0:02:33]} 31. Nb3 {[%emt 0:00:07]} g5 {[%emt 0:00:11]} 32. Qg3 {[%emt 0:06:45]} (32. Qxc5 $2 {perishes.} Qxc5 33. Nxc5 gxf4 $19) 32... h6 {[%emt 0:12:26]} 33. Rf2 {[%emt 0:01:15]} Bxc4 {[%emt 0:02:13][%cal Of5f4]} 34. Rxf5 {[%emt 0:00:17] aiming for Qc3.} Bxb3 $4 {[%emt 0:00:43][%mdl 8192]} (34... Qe6 $14 35. Rf3 (35. Nxc5 $2 {loses.} Qxf5 36. Nxa6 Rxa6 $19) (35. Rf6 Qd5 $14) 35... Qd5) 35. Qxb3 $18 {[%emt 0:00:05] Black must now prevent Raf1.} Rxa5 {[%emt 0:00:02]} 36. Raf1 {[%emt 0:00:35] White wants to mate with Rf7+.} Kh8 {[%emt 0:00:06]} 37. Rf7 {[%emt 0:00:36] Weighted Error Value: White=0.09 (flawless) /Black=0.37.  Loses game:     	---       	Black=1      Mistake:       	White=1     	Black=1      Inaccurate:     	White=3     	Black=3      OK:         	White=13    	Black=8      Best:        	White=1     	---} 1-0

[Event "FIDE Candidates 2024"]
[Site "Toronto"]
[Date "2024.04.07"]
[Round "4.3"]
[White "Caruana, Fabiano"]
[Black "Gukesh D"]
[Result "1/2-1/2"]
[ECO "C54"]
[WhiteElo "2803"]
[BlackElo "2743"]
[Annotator "TA"]
[PlyCount "147"]
[EventDate "2024.04.02"]
[EventType "tourn"]
[EventCountry "CAN"]
[SourceTitle "playchess.com"]
[Source "ChessBase"]
[SourceQuality "1"]
[TimeControl "40/7200:1800+30"]

{[%evp 11,147,10,23,28,31,17,25,17,27,21,22,18,28,16,31,13,25,21,21,24,35,50,50,46,40,20,12,27,61,58,53,76,71,45,41,48,58,66,65,43,50,41,48,41,62,63,96,66,72,60,60,53,60,60,60,60,60,0,0,0,0,0,60,0,0,0,0,0,0,0,0,0,0,0,0,0,0,0,0,0,0,0,0,0,0,0,0,0,0,0,0,0,0,0,0,0,0,0,0,0,0,0,0,0,0,0,60,60,60,60,60,60,60,45,60,60,60,60,60,60,60,0,0,0,0,0,0,0,0,0,0,0,0,0,0,0,0,0]} 1. e4 {[%emt 0:00:03]} e5 {[%emt 0:00:07]} 2. Nf3 {[%emt 0:00:05]} Nc6 {[%emt 0:00:05]} 3. Bc4 {[%emt 0:00:04]} Bc5 {[%emt 0:00:50]} 4. O-O {[%emt 0:00:14]} Nf6 {[%emt 0:00:07]} 5. d3 {[%emt 0:00:04]} d6 {[%emt 0:00:16]} 6. c3 {[%emt 0:00:15]} a6 {[%emt 0:00:21]} 7. a4 {[%emt 0:00:07]} Ba7 {[%emt 0:00:17]} 8. h3 {[%emt 0:01:07]} O-O {[%emt 0:06:36][%cal Ob7b5]} 9. Nbd2 {[%emt 0:00:22][%cal Bb1d2,Bd2f1,Bf1g3,Bg3f5][%mdl 32] White has an edge.} Re8 {[%emt 0:01:35]} 10. b4 {[%emt 0:01:03]} Be6 {[%emt 0:02:17]} 11. Bxe6 {[%emt 0:00:20]} Rxe6 {[%emt 0:00:06]} 12. Qc2 {[%emt 0:00:13]} Re8 {[%emt 0:10:56]} 13. Re1 {[%emt 0:03:25]} h6 {[%emt 0:02:23]} 14. Nf1 {[%emt 0:15:47]} d5 {[%emt 0:06:36]} 15. Ng3 {[%emt 0:00:36]} b5 {[%emt 0:05:02]} 16. Nf5 {[%emt 0:26:21][%cal Oc1h6] Threatens to win with Bxh6!} dxe4 {[%emt 0:06:40]} 17. dxe4 {[%emt 0:00:05][%cal Oc1h6]} Ne7 {[%emt 0:00:12]} 18. Nxe5 {[%emt 0:11:17] [#] And now Qa2 would win.} Nxf5 {[%emt 0:00:21]} 19. exf5 {[%emt 0:00:04]} c5 {[%emt 0:26:47]} 20. Bf4 {[%emt 0:07:53] White is more active.} bxa4 {[%emt 0:10:03]} 21. Nc6 {[%emt 0:11:02]} Qd7 {[%emt 0:00:59]} 22. Rxe8+ {[%emt 0:01:14]} (22. Qxa4 cxb4 23. cxb4 (23. Rxe8+ Rxe8 24. Nxa7 Re1+ 25. Kh2 Rxa1 $11) 23... Bxf2+ 24. Kxf2 Qxf5 $11) (22. Nxa7 {simplifies} Rxe1+ 23. Rxe1 cxb4 24. cxb4 Rxa7 25. Rd1) 22... Rxe8 {[%emt 0:00:36]} 23. Nxa7 {[%emt 0:00:18]} cxb4 {[%emt 0:01:32]} 24. cxb4 {[%emt 0:05:45] Strongly threatening Nc6.} Qd4 {[%emt 0:01:53] [#]} 25. Qc1 {[%emt 0:00:10]} Qxa7 {[%emt 0:00:32]} 26. Rxa4 {[%emt 0:00:05]} Qb7 {[%emt 0:05:32]} 27. Qd2 {[%emt 0:03:49]} Nd5 {[%emt 0:03:15]} 28. Bg3 {[%emt 0:01:07]} f6 {[%emt 0:08:53]} 29. Bd6 {[%emt 0:06:58]} Qc6 {[%emt 0:01:54][%csl LRa4,LRd6][%cal Oc6d6]} 30. Ra5 {[%emt 0:00:31]} Qxd6 {[%emt 0:00:10]} 31. Rxd5 {[%emt 0:00:10]} (31. Qxd5+ Qxd5 32. Rxd5 Re1+ 33. Kh2 Re4 $11) 31... Re1+ {[%emt 0:00:05]} 32. Qxe1 {[%emt 0:00:02]} Qxd5 $14 {[%emt 0:00:05][%mdl 4096] Endgame. KQ-KQ} 33. g4 {[%emt 0:01:27] Hoping for Qe6+.} ({Reject} 33. Qe6+ Qxe6 34. fxe6 Kf8 $11) 33... Kh7 {[%emt 0:01:08][%cal Oh6h5]} 34. Qc3 {[%emt 0:00:15]} (34. Qe6 $14 Qd4 35. Qe1 (35. Qxa6 Qxb4 36. Qd3 Qc5 $11)) 34... Qe4 $11 {[%emt 0:00:18]} 35. Kh2 {[%emt 0:00:34]} Qf4+ {[%emt 0:00:11]} 36. Kg2 {[%emt 0:00:04]} Kg8 {[%emt 0:00:49]} (36... h5 $11) 37. f3 {[%emt 0:00:58]} ({White should try} 37. Qc8+ $14 Kh7 38. Qc3 (38. Qxa6 Qe4+ 39. Kg3 Qxb4 $11)) 37... Kh7 {[%emt 0:00:17]} 38. Qe1 {[%emt 0:00:18]} h5 {[%emt 0:05:40]} 39. Qe4 {[%emt 0:06:21]} Qd2+ {[%emt 0:00:15]} 40. Kg3 {[%emt 0:00:00]} Qc1 {[%emt 0:00:00]} 41. Qe2 {[%emt 0:04:21]} (41. gxh5 $2 {is a self mate.} Qg1+ 42. Kh4 Qg5#) 41... hxg4 {[%emt 0:02:48]} 42. hxg4 {[%emt 0:02:55][%cal Og3g2]} Qg1+ {[%emt 0:00:06]} 43. Kf4 {[%emt 0:00:14][%cal Oe2d2]} Qc1+ {[%emt 0:00:36]} 44. Ke4 {[%emt 0:00:38]} Qb1+ {[%emt 0:00:38]} 45. Ke3 {[%emt 0:00:05]} Qxb4 {[%emt 0:01:12]} 46. Qxa6 {[%emt 0:00:05]} Qc5+ {[%emt 0:00:11]} 47. Ke2 {[%emt 0:00:30]} Qc2+ {[%emt 0:00:14]} 48. Kf1 {[%emt 0:00:36]} Qd1+ {[%emt 0:00:05]} 49. Kf2 {[%emt 0:00:03]} Qd4+ {[%emt 0:00:05]} 50. Kg2 {[%emt 0:00:30]} Qd2+ {[%emt 0:00:11]} 51. Kh3 {[%emt 0:00:06]} Qd1 {[%emt 0:02:28] Wards off Qf1} 52. Kg2 {[%emt 0:00:14]} Qd2+ {[%emt 0:00:06]} 53. Kf1 {[%emt 0:00:06]} Qd1+ {[%emt 0:00:11]} 54. Kf2 {[%emt 0:00:05]} Qd4+ {[%emt 0:00:08]} 55. Ke1 {[%emt 0:00:17]} Qc3+ {[%emt 0:00:12]} 56. Ke2 {[%emt 0:00:12]} Qc2+ {[%emt 0:01:41]} 57. Ke3 {[%emt 0:00:26]} Qc1+ {[%emt 0:03:46]} 58. Kf2 {[%emt 0:00:38]} Qc5+ {[%emt 0:00:17]} (58... Kh6 $1 $11) 59. Kg2 $14 {[%emt 0:00:08]} Qc2+ {[%emt 0:00:06]} 60. Kg3 {[%emt 0:00:03]} Qc7+ {[%emt 0:01:04]} 61. Kh3 $1 {[%emt 0:00:13]} Qc1 {[%emt 0:01:03]} 62. Qe2 {[%emt 0:00:15]} Qh1+ {[%emt 0:01:44]} 63. Kg3 {[%emt 0:00:04]} Qg1+ {[%emt 0:00:04]} 64. Qg2 {[%emt 0:00:03]} Qe1+ {[%emt 0:00:05]} 65. Qf2 {[%emt 0:00:04]} Qe5+ {[%emt 0:00:08]} 66. f4 {[%emt 0:00:19]} (66. Kg2 $14) 66... Qc3+ $11 {[%emt 0:00:10] The position is equal.} 67. Qf3 {[%emt 0:00:21]} Qe1+ {[%emt 0:00:21]} 68. Kg2 {[%emt 0:00:05]} Qd2+ {[%emt 0:01:36]} 69. Kh3 {[%emt 0:00:15]} Qc1 {[%emt 0:01:28]} 70. Qf2 {[%emt 0:00:07]} Qh1+ {[%emt 0:01:28]} 71. Kg3 {[%emt 0:00:04] Qh2+ would now be deadly.} Qc1 {[%emt 0:00:05]} 72. Kh2 {[%emt 0:01:56]} Kg8 {[%emt 0:00:17]} 73. Qg3 {[%emt 0:00:06]} Kh7 {[%emt 0:00:23]} 74. Qf2 {[%emt 0:00:51] Weighted Error Value: White=0.05 (flawless) /Black=0.07 (flawless) .  Mistake:       	White=3     	Black=2      Inaccurate:     	White=2     	Black=2      OK:         	White=16    	Black=34     Best:        	White=6     	Black=8      Strong:       	White=1     	---} 1/2-1/2

[Event "FIDE Candidates 2024"]
[Site "Toronto"]
[Date "2024.04.11"]
[Round "7.3"]
[White "Caruana, Fabiano"]
[Black "Praggnanandhaa R"]
[Result "1/2-1/2"]
[ECO "C02"]
[WhiteElo "2803"]
[BlackElo "2747"]
[Annotator "TA"]
[PlyCount "82"]
[EventDate "2024.04.02"]
[EventType "tourn"]
[EventCountry "CAN"]
[SourceTitle "playchess.com"]
[Source "ChessBase"]
[SourceQuality "1"]
[TimeControl "40/7200:1800+30"]

{[%evp 17,82,12,8,0,6,0,9,7,12,0,0,0,0,0,4,0,8,0,0,0,0,0,0,-8,-12,-11,0,0,0,0,0,0,-22,-12,-16,-14,-14,-25,0,-7,0,0,0,0,0,0,0,0,0,0,0,0,0,0,0,0,0,0,0,0,0,0,0,0,0,0,0]} 1. e4 {[%emt 0:00:04]} e6 {[%emt 0:00:47]} 2. d4 {[%emt 0:00:09]} d5 {[%emt 0:00:05]} 3. e5 {[%emt 0:00:03]} c5 {[%emt 0:00:07]} 4. c3 {[%emt 0:00:04]} Nc6 {[%emt 0:00:07]} 5. Nf3 {[%emt 0:00:05]} Qb6 {[%emt 0:00:05]} 6. a3 {[%emt 0:00:32]} Bd7 {[%emt 0:00:22]} 7. b4 {[%emt 0:00:47]} cxd4 {[%emt 0:00:11]} 8. cxd4 {[%emt 0:00:05]} Rc8 {[%emt 0:00:10]} 9. Bb2 {[%emt 0:00:20]} Nge7 {[%emt 0:01:00]} 10. Nc3 {[%emt 0:05:40][%cal Bb1c3,Bc3a4,Ba4c5][%mdl 32]} Na5 $1 {[%emt 0:01:23]} 11. Na4 {[%emt 0:01:00]} (11. bxa5 $2 {loses.} Qxb2 12. Na2 Qxa3 $19) 11... Qc6 {[%emt 0:02:17]} 12. Nc5 {[%emt 0:00:53]} Nc4 {[%emt 0:00:22]} 13. Bc3 {[%emt 0:04:30]} b6 {[%emt 0:03:33]} 14. Nxd7 {[%emt 0:00:25]} Qxd7 {[%emt 0:00:56]} 15. Bd3 {[%emt 0:00:49]} g6 {[%emt 0:02:45]} 16. Qe2 {[%emt 0:15:38]} h5 {[%emt 0:14:59]} 17. Bd2 {[%emt 0:05:57]} Nxd2 {[%emt 0:13:35]} 18. Nxd2 {[%emt 0:00:49]} Bh6 {[%emt 0:01:05]} 19. Bb5 {[%emt 0:08:04]} Nc6 $1 {[%emt 0:00:56][%cal Oa7a6]} 20. Nf3 {[%emt 0:02:35]} O-O {[%emt 0:04:03]} 21. O-O {[%emt 0:00:06]} Qe7 {[%emt 0:02:41]} 22. Ba6 {[%emt 0:04:21]} Rc7 {[%emt 0:01:07]} 23. Rfd1 {[%emt 0:08:19]} Nb8 {[%emt 0:11:47]} 24. Bd3 {[%emt 0:00:14]} a5 {[%emt 0:04:47]} 25. bxa5 {[%emt 0:05:58]} bxa5 {[%emt 0:00:08]} 26. Qe1 {[%emt 0:00:08]} Nc6 {[%emt 0:02:11]} 27. Rdb1 {[%emt 0:08:54]} Ra8 {[%emt 0:03:07]} 28. Bb5 {[%emt 0:05:15] The position is equal.} Qd8 {[%emt 0:08:44]} 29. g3 {[%emt 0:03:54]} Ne7 {[%emt 0:01:53]} 30. Kg2 {[%emt 0:00:22]} Qc8 {[%emt 0:01:50]} 31. Qd1 {[%emt 0:07:23]} Rc3 {[%emt 0:02:26]} 32. Rb3 {[%emt 0:02:09]} Qc7 {[%emt 0:05:24]} 33. Rab1 {[%emt 0:01:40]} Rb8 {[%emt 0:01:29]} 34. a4 {[%emt 0:05:01]} Rc2 {[%emt 0:03:33]} 35. R3b2 {[%emt 0:00:31]} Rc3 {[%emt 0:07:15]} 36. Ng1 {[%emt 0:02:37]} Rc1 {[%emt 0:01:39]} 37. Rxc1 {[%emt 0:01:37]} Qxc1 {[%emt 0:00:05]} 38. Qxc1 {[%emt 0:01:07]} Bxc1 {[%emt 0:00:03]} 39. Rb1 {[%emt 0:02:58]} Bd2 {[%emt 0:03:17]} 40. Nf3 {[%emt 0:00:00]} Bb4 {[%emt 0:00:00]} 41. Rc1 {[%emt 0:05:57]} Rc8 {[%emt 0:00:46] An even fight not without its subleties.   Weighted Error Value: White=0.02 (flawless) /Black=0.02 (flawless) .  OK:         	White=15    	Black=20     Best:        	White=1     	---        Strong:       	---       	Black=2} 1/2-1/2

[Event "FIDE Candidates 2024"]
[Site "Toronto"]
[Date "2024.04.15"]
[Round "10.4"]
[White "Caruana, Fabiano"]
[Black "Firouzja, Alireza"]
[Result "1-0"]
[ECO "B90"]
[WhiteElo "2803"]
[BlackElo "2760"]
[Annotator "TA"]
[PlyCount "93"]
[EventDate "2024.04.02"]
[EventType "tourn"]
[EventCountry "CAN"]
[SourceTitle "playchess.com"]
[Source "ChessBase"]
[SourceQuality "1"]
[TimeControl "40/7200:1800+30"]

{[%evp 25,93,20,107,0,21,16,40,19,58,52,41,55,51,39,32,34,44,42,35,10,12,12,33,37,52,40,41,14,20,27,18,22,18,12,19,8,87,79,75,79,164,54,63,63,81,37,70,60,92,105,137,134,166,165,160,137,217,217,332,415,415,415,395,415,397,406,406,390,301,292]} 1. e4 {[%emt 0:00:03]} c5 {[%emt 0:00:03]} 2. Nf3 {[%emt 0:00:05]} d6 {[%emt 0:00:03]} 3. d4 {[%emt 0:00:08]} cxd4 {[%emt 0:00:04]} 4. Nxd4 {[%emt 0:00:04]} Nf6 {[%emt 0:00:07]} 5. Nc3 {[%emt 0:00:04]} a6 {[%emt 0:00:04]} 6. Rg1 {[%emt 0:00:47]} h5 {[%emt 0:12:47] B90: Sicilian Najdorf: Unusual White 6th moves, 6 Be3 Ng4 and 6 Be3 e5.} 7. Bc4 $146 {[%emt 0:00:23]} ({Predecessor:} 7. Bg5 Nbd7 8. Bc4 g6 9. Qd2 Bg7 10. O-O-O Qc7 11. Bb3 b5 12. Rge1 O-O 13. f4 Nc5 14. Bxf6 exf6 {1-0 Carlsen,M (2835)-Firouzja,A (2777) Julius Baer Rapid Div 1 W 2023 (3.1)}) 7... g6 {[%emt 0:05:57]} 8. Bg5 {[%emt 0:02:30]} Bg7 {[%emt 0:00:07]} 9. Qd2 {[%emt 0:00:48]} Qa5 {[%emt 0:10:08]} 10. O-O-O {[%emt 0:12:33]} Nc6 {[%emt 0:01:17]} 11. Nb3 {[%emt 0:06:45]} Qxg5 {[%emt 0:09:06]} 12. Qxg5 {[%emt 0:00:37]} Bh6 {[%emt 0:00:06]} 13. h4 {[%emt 0:13:21]} (13. Bxf7+ Kxf7 $17) 13... Be6 {[%emt 0:15:37] [#]} (13... Bxg5+ $11 14. hxg5 Ng4) 14. Be2 {[%emt 0:14:12]} (14. Bxe6 $1 $16 fxe6 15. e5 dxe5 (15... Nxe5 $2 16. f4 $18) 16. Qxh6 (16. Rd8+ $2 Rxd8 $19) 16... Rxh6 17. Nc5) 14... Kf8 {[%emt 0:06:21]} (14... Bxg5+ {simplifies} 15. hxg5 Nd7 16. f4 Bxb3 17. axb3 O-O-O) 15. Nd4 {[%emt 0:13:54]} Nxd4 {[%emt 0:10:13]} 16. Rxd4 {[%emt 0:00:05]} Rc8 {[%emt 0:00:34]} (16... Bxg5+ {simplifies} 17. hxg5 Ne8 18. f4 Bd7) 17. f4 {[%emt 0:05:51]} Bxg5 {[%emt 0:00:12]} 18. hxg5 {[%emt 0:00:03]} Ng4 {[%emt 0:01:39]} 19. Rf1 {[%emt 0:00:26]} Bd7 {[%emt 0:08:37]} 20. Kd2 {[%emt 0:07:18]} Bc6 {[%emt 0:03:43]} 21. Nd5 {[%emt 0:07:57]} f5 {[%emt 0:07:47]} 22. gxf6 {[%emt 0:13:58]} (22. exf5 {is interesting.} gxf5 23. Bd3 e5 24. fxe5 dxe5 25. Bxf5 exd4 26. Bxg4+ Kg7 27. Bxc8 Bxd5 28. Bh3) 22... Nxf6 {[%emt 0:00:56]} 23. c4 {[%emt 0:01:29]} Kg7 {[%emt 0:04:27]} 24. Nxe7 {[%emt 0:02:21]} Nxe4+ {[%emt 0:00:15]} 25. Kd1 $1 {[%emt 0:00:41]} Ng3 {[%emt 0:04:20]} 26. Re1 {[%emt 0:00:10]} (26. Nxc8 {simplifies} Nxf1 27. Bxf1 Rxc8 28. b4) 26... Nf5 {[%emt 0:03:26]} 27. Nxf5+ {[%emt 0:00:18]} (27. Nxc8 $2 Nxd4 28. Nxd6 Bxg2 $19) 27... gxf5 {[%emt 0:00:01]} 28. Bd3 {[%emt 0:03:27]} (28. Rxd6 h4 $11) 28... Rcf8 {[%emt 0:02:16]} 29. Rxd6 {[%emt 0:00:35]} Rf6 $1 {[%emt 0:01:03]} 30. c5 {[%emt 0:04:19]} h4 {[%emt 0:00:56]} (30... Rxd6 $1 $11 {remains equal.} 31. cxd6 Rd8) 31. Re7+ $16 {[%emt 0:00:21]} Kg6 {[%emt 0:00:05]} 32. Re5 {[%emt 0:00:54]} Rh5 {[%emt 0:05:01]} (32... Rxd6 $16 {might work better.} 33. cxd6 Kf6) 33. Bf1 {[%emt 0:00:49]} ({White should play} 33. Rd8 $18 {Rg8+ would now be deadly.} Rf7 34. Ke2) 33... Rxd6+ $14 {[%emt 0:01:27]} 34. cxd6 {[%emt 0:00:03]} Rh8 {[%emt 0:00:06]} 35. Re6+ {[%emt 0:00:28]} Kf7 {[%emt 0:00:13]} 36. Bc4 {[%emt 0:00:46]} Rd8 {[%emt 0:00:25]} 37. Ke1 {[%emt 0:00:17]} Kg7 {[%emt 0:00:23]} 38. Kf2 {[%emt 0:00:05]} a5 {[%emt 0:00:01]} 39. a3 {[%emt 0:00:19]} b5 {[%emt 0:00:01]} 40. Bd3 {[%emt 0:00:00]} Bd5 {[%emt 0:00:00] [#]} (40... Bd7 $16 41. Re5 b4 42. axb4 (42. Bxf5 Bxf5 43. Rxf5 Rxd6 $16) (42. Rxa5 bxa3 43. bxa3 Kf6 $18) 42... axb4 43. Re7+ (43. Bxf5 Bxf5 44. Rxf5 Rxd6 $16) 43... Kg6) 41. Re7+ $1 $18 {[%emt 0:08:29]} Bf7 {[%emt 0:07:02]} (41... Kf6 $142 42. Bxb5 Rxd6) 42. Bxb5 $18 {[%emt 0:04:48]} ({Weaker is} 42. Bxf5 Rxd6 43. Rb7 Kf6 $16) 42... Kf6 {[%emt 0:03:24]} 43. Rc7 {[%emt 0:02:36]} (43. Bd7 Rb8 44. Re5 Rxb2+ 45. Ke3 Rb6 46. Rxf5+ (46. Rxa5 Rxd6 47. Bxf5 Bd5 $18) 46... Kg7 47. Rxa5 Rxd6 $16) 43... Rxd6 {[%emt 0:00:41] [#]} 44. Rc6 $1 {[%emt 0:00:03]} Rxc6 {[%emt 0:00:13]} 45. Bxc6 {[%emt 0:00:04]} Bb3 {[%emt 0:00:08]} 46. Bd7 {[%emt 0:03:57]} Kg6 {[%emt 0:08:49]} 47. Kg1 {[%emt 0:01:00]} 1-0